fUSD/lending_fUSD_20251023
["ID","MTS","AMOUNT","RATE_DAILY","PERIOD"]
[392171968,1761232239095,-472.90693744,0.00043835,120]
[392171969,1761232239106,-610.92,0.00043835,120]
[392171970,1761232239115,-500.0,0.00043835,120]
[392171971,1761232239124,-500.0,0.00043835,120]
[392171972,1761232239134,-500.0,0.00043835,120]
[392171973,1761232239144,-500.0,0.00043835,120]
[392171974,1761232239153,-500.0,0.00043835,120]
[392171975,1761232239163,-500.0,0.00043835,120]
[392171976,1761232239172,-500.0,0.00043835,120]
[392171977,1761232239182,-500.0,0.00043835,120]
[392171978,1761232239192,-500.0,0.00043835,120]
[392171979,1761232239201,-500.0,0.00043835,120]
[392171980,1761232239211,-500.0,0.00043835,120]
[392171981,1761232239220,-502.34118102,0.00043835,120]
[392171982,1761232239230,-500.0,0.00043835,120]
[392171983,1761232239239,-500.0,0.00043835,120]
[392171984,1761232239249,-500.0,0.00043835,120]
[392171985,1761232239259,-500.0,0.00043835,120]
[392171986,1761232239271,-500.0,0.00043835,120]
[392171987,1761232239283,-500.0,0.00043835,120]
[392171988,1761232239291,-500.0,0.00043835,120]
[392171989,1761232239300,-500.0,0.00043835,120]
[392171990,1761232239309,-500.0,0.00043835,120]
[392171991,1761232239322,-354.15229057,0.00043835,120]
[392171992,1761232239332,-500.0,0.00043835,120]
[392171993,1761232239342,-500.0,0.00043835,30]
[392171994,1761232239351,-500.0,0.00043835,120]
[392171995,1761232239361,-500.0,0.00043835,120]
[392171996,1761232239370,-500.0,0.00043835,30]
[392171997,1761232239380,-500.0,0.00043835,120]
[392171998,1761232239390,-413.64,0.00043835,2]
[392172000,1761232239399,-500.0,0.00043835,120]
[392172001,1761232239410,-564.84943295,0.00043835,120]
[392172003,1761232239420,-500.0,0.00043835,120]
[392172004,1761232239430,-500.0,0.00043835,120]
[392172005,1761232239440,-598.92,0.00043835,120]
[392172006,1761232239450,-644.06,0.00043835,120]
[392172007,1761232239460,-508.48214737,0.00043835,120]
[392172008,1761232239470,-500.0,0.00043835,120]
[392172009,1761232239481,-500.0,0.00043835,120]
[392172010,1761232239491,-500.0,0.00043835,120]
[392172011,1761232239501,-594.61038538,0.00043835,120]
[392172012,1761232239512,-500.0,0.00043835,120]
[392172013,1761232239522,-500.0,0.00043835,120]
[392172014,1761232239532,-500.0,0.00043835,120]
[392172015,1761232239543,-500.0,0.00043835,120]
[392172016,1761232239552,-500.0,0.00043835,120]
[392172017,1761232239562,-509.29990054,0.00043835,120]
[392172018,1761232239576,-500.0,0.00043835,120]
[392172019,1761232239586,-500.0,0.00043835,120]
[392172020,1761232239597,-500.0,0.00043835,120]
[392172021,1761232239607,-500.0,0.00043835,120]
[392172022,1761232239617,-500.0,0.00043835,120]
[392172023,1761232239627,-500.0,0.00043835,120]
[392172024,1761232239638,-500.0,0.00043835,120]
[392172025,1761232239649,-500.0,0.00043835,120]
[392172026,1761232239660,-500.0,0.00043835,120]
[392172027,1761232239669,-500.0,0.00043835,120]
[392172028,1761232239679,-500.0,0.00043835,120]
[392172029,1761232239689,-500.0,0.00043835,120]
[392172030,1761232239699,-500.0,0.00043835,120]
[392172031,1761232239709,-178.83032405,0.00043835,120]
[392172032,1761232239718,-500.0,0.00043835,120]
[392172033,1761232239729,-500.0,0.00043835,120]
[392172034,1761232239739,-500.0,0.00043835,120]
[392172035,1761232239749,-500.0,0.00043835,120]
[392172036,1761232239759,-500.0,0.00043835,120]
[392172037,1761232239769,-500.0,0.00043835,120]
[392172038,1761232239779,-500.0,0.00043835,2]
[392172039,1761232239789,-500.0,0.00043835,120]
[392172040,1761232239799,-500.0,0.00043835,30]
[392172041,1761232239809,-500.0,0.00043835,120]
[392172042,1761232239823,-500.0,0.00043835,120]
[392172043,1761232239832,-500.0,0.00043835,120]
[392172044,1761232239842,-500.0,0.00043835,120]
[392172045,1761232239852,-499.44541244,0.00043835,120]
[392172046,1761232239862,-500.0,0.00043835,12]
[392172047,1761232239872,-514.2516951,0.00043835,120]
[392172048,1761232239882,-220.30271091,0.00043835,120]
[392172049,1761232239892,-500.0,0.00043835,120]
[392172050,1761232239902,-500.0,0.00043835,120]
[392172051,1761232239912,-500.0,0.00043835,120]
[392172052,1761232239922,-500.0,0.00043835,120]
[392172053,1761232239932,-500.0,0.00043835,120]
[392172054,1761232239941,-500.0,0.00043835,120]
[392172055,1761232239951,-500.0,0.00043835,120]
[392172056,1761232239961,-500.0,0.00043835,120]
[392172057,1761232239971,-300.0,0.00043835,120]
[392172058,1761232239981,-500.0,0.00043835,120]
[392172059,1761232239991,-200.04366374,0.00043835,120]
[392172060,1761232240005,-299.95633626,0.00043835,120]
[392172061,1761232240014,-124.92674912,0.00043835,120]
[392172066,1761232240610,-79.33612385,0.00043835,120]
[392172067,1761232240622,-295.73712703,0.00043835,120]
[392172068,1761232240632,-500.0,0.00043835,120]
[392172069,1761232240643,-500.0,0.00043835,120]
[392172070,1761232240653,-500.0,0.00043835,120]
[392172071,1761232240666,-500.0,0.00043835,120]
[392172072,1761232240675,-392.81388242,0.00043835,120]
[392172073,1761232240688,-116.67611758,0.00043835,120]
[392172074,1761232240698,-518.85,0.00043835,120]
[392172075,1761232240707,-505.62774983,0.00043835,120]
[392172076,1761232240717,-493.62439752,0.00043835,120]
[392172077,1761232240727,-517.1153983,0.00043835,120]
[392172078,1761232240737,-500.0,0.00043835,120]
[392172079,1761232240746,-500.0,0.00043835,30]
[392172080,1761232240756,-511.52007189,0.00043835,120]
[392172081,1761232240766,-518.73,0.00043835,120]
[392172082,1761232240775,-500.0,0.00043835,120]
[392172083,1761232240785,-500.0,0.00043835,120]
[392172084,1761232240794,-500.0,0.00043835,120]
[392172085,1761232240804,-150.0,0.00043862,30]
[392172086,1761232240813,-7675.38601986,0.0004389,3]
[392172087,1761232240824,-806.3387402,0.0004389,16]
[392172088,1761232240834,-158.5705089,0.000439,15]
[392172089,1761232240843,-7162.64514414,0.00043914,15]
[392172090,1761232240852,-184.64,0.00043979,2]
[392172091,1761232240862,-7675.38601986,0.0004398,3]
[392172092,1761232240871,-23026.1580596,0.00043989,3]
[392172093,1761232240881,-184.64,0.00043989,2]
[392172094,1761232240891,-15350.7720397,0.0004399,3]
[392172095,1761232240900,-20712.07752241,0.00043999,120]
[392172096,1761232240914,-2970.00001,0.00043999,120]
[392172097,1761232240926,-974.0010031,0.00043999,120]
[392172098,1761232241056,-6346.80758099,0.00043999,120]
[392172099,1761232241069,-447.20556288,0.00043999,120]
[392172100,1761232241082,-13939.530331,0.00043999,120]
[392172101,1761232241092,-230.27054838,0.00043999,120]
[392172102,1761232241102,-26790.81610172,0.00044,30]
[392172103,1761232241135,-674.82664481,0.00044,30]
[392172104,1761232241171,-305.64337195,0.00044,30]
[392172105,1761232241184,-10228.72093612,0.00044,30]
[392172106,1761232241194,-2100.0,0.00044,30]
[392172107,1761232241203,-7675.38601986,0.00044002,3]
[392172108,1761232241211,-113.74836627,0.00044024,10]
[392172109,1761232241222,-386.25163373,0.00044024,10]
[392172110,1761232241232,-500.0,0.00044024,10]
[392172111,1761232241241,-260.73597313,0.00044024,10]
[392172112,1761232241251,-554.05633347,0.00044024,10]
[392172113,1761232241263,-0.27570387,0.00044024,10]
[392172114,1761232241276,-200.0,0.00044024,10]
[392172115,1761232241286,-500.0,0.00044024,10]
[392172116,1761232241295,-7162.64514414,0.00044039,15]
[392172117,1761232241305,-344.90838272,0.00044052,2]
[392172118,1761232241317,-1647.762572,0.00044052,2]
[392172119,1761232241329,-670.9294234,0.00044052,2]
[392172120,1761232241342,-822.39962188,0.00044052,2]
[392172121,1761232241351,-527.43,0.00044082,30]
[392172122,1761232241361,-200.17037812,0.00044082,30]
[392172123,1761232241372,-390.204,0.00044082,30]
[392172124,1761232241384,-105.89562188,0.00044082,30]
[392172125,1761232241394,-475.46,0.00044082,30]
[392172126,1761232241403,-696.27,0.00044082,30]
[392172127,1761232241413,-696.27,0.00044082,30]
[392172128,1761232241423,-475.46,0.00044082,30]
[392172129,1761232241432,-696.27,0.00044082,30]
[392172130,1761232241441,-696.27,0.00044082,30]
[392172131,1761232241451,-190.92,0.00044082,30]
[392172132,1761232241460,-464.56790706,0.00044109,120]
[392172133,1761232241472,-535.43209294,0.00044109,120]
[392172134,1761232241481,-5303.177708,0.00044114,3]
[392172135,1761232241493,-2372.20831186,0.00044114,3]
[392172136,1761232241503,-1756.43155697,0.00044116,15]
[392172137,1761232241515,-1743.04912389,0.00044116,15]
[392172138,1761232241524,-180.3872281,0.00044129,28]
[392172139,1761232241534,-2508.83203827,0.00044163,15]
[392172140,1761232241546,-4653.81310587,0.00044163,15]
[392172141,1761232241556,-475.0,0.00044184,30]
[392172142,1761232241565,-184.64,0.00044199,2]
[392172143,1761232241579,-151.0,0.00044209,120]
[392172144,1761232241589,-151.0,0.00044209,120]
[392172145,1761232241599,-287.723984,0.00044209,120]
[392172146,1761232241609,-7675.38601986,0.00044209,3]
[392172147,1761232241619,-156.05,0.00044219,30]
[392172148,1761232241629,-308.91,0.00044219,30]
[392172149,1761232241639,-150.0,0.00044219,30]
[392172150,1761232241650,-170.49,0.00044219,30]
[392172151,1761232241660,-1201.16,0.00044219,30]
[392172152,1761232241670,-150.27,0.00044219,30]
[392172153,1761232241682,-150.0,0.00044219,30]
[392172154,1761232241692,-150.0,0.00044219,30]
[392172155,1761232241702,-333.53,0.00044219,30]
[392172156,1761232241713,-414.24,0.00044219,30]
[392172157,1761232241723,-547.46,0.00044219,30]
[392172158,1761232241733,-1201.16,0.00044219,30]
[392172159,1761232241743,-168.47,0.00044219,30]
[392172160,1761232241753,-150.0,0.00044219,30]
[392172161,1761232241763,-176.3,0.00044219,30]
[392172162,1761232241772,-547.46,0.00044219,30]
[392172163,1761232241782,-150.0,0.00044219,30]
[392172164,1761232241792,-414.24,0.00044219,30]
[392172165,1761232241802,-150.0,0.00044219,30]
[392172166,1761232241811,-176.3,0.00044219,30]
[392172167,1761232241823,-155.14057315,0.00044219,30]
[392172168,1761232241835,-392.31942685,0.00044219,30]
[392172169,1761232241845,-150.0,0.00044219,30]
[392172170,1761232241855,-150.0,0.00044219,30]
[392172171,1761232241865,-671.36892244,0.00044219,30]
[392172172,1761232241877,-529.79107756,0.00044219,30]
[392172173,1761232241886,-414.24,0.00044219,30]
[392172174,1761232241896,-168.47,0.00044219,30]
[392172175,1761232241906,-150.0,0.00044219,30]
[392172176,1761232241917,-150.0,0.00044219,30]
[392172177,1761232241926,-547.46,0.00044219,30]
[392172178,1761232241936,-1201.16,0.00044219,30]
[392172179,1761232241945,-176.3,0.00044219,30]
[392172180,1761232241955,-168.47,0.00044219,30]
[392172181,1761232241964,-414.24,0.00044219,30]
[392172182,1761232241974,-150.0,0.00044219,30]
[392172183,1761232241983,-1201.16,0.00044219,30]
[392172184,1761232241993,-150.0,0.00044219,30]
[392172185,1761232242003,-547.46,0.00044219,30]
[392172186,1761232242012,-176.3,0.00044219,30]
[392172187,1761232242021,-150.0,0.00044219,30]
[392172188,1761232242031,-414.24,0.00044219,30]
[392172189,1761232242040,-548.98,0.00044219,30]
[392172190,1761232242050,-1343.32,0.00044219,30]
[392172191,1761232242059,-176.3,0.00044219,30]
[392172192,1761232242071,-414.24,0.00044219,30]
[392172193,1761232242081,-176.3,0.00044219,30]
[392172194,1761232242091,-150.0,0.00044219,30]
[392172195,1761232242101,-414.24,0.00044219,30]
[392172196,1761232242111,-176.3,0.00044219,30]
[392172197,1761232242121,-414.24,0.00044219,30]
[392172198,1761232242130,-150.0,0.00044219,30]
[392172199,1761232242140,-414.24,0.00044219,30]
[392172200,1761232242150,-176.3,0.00044219,30]
[392172201,1761232242160,-414.24,0.00044219,30]
[392172202,1761232242170,-176.3,0.00044219,30]
[392172203,1761232242179,-345.31,0.00044219,30]
[392172204,1761232242189,-414.24,0.00044219,30]
[392172205,1761232242199,-414.24,0.00044219,30]
[392172206,1761232242208,-414.24,0.00044219,30]
[392172207,1761232242218,-158.57050889,0.00044243,15]
[392172208,1761232242227,-1295.57138904,0.00044288,15]
[392172209,1761232242239,-3829.98099585,0.00044288,15]
[392172210,1761232242250,-2037.09275925,0.00044288,15]
[392172211,1761232242260,-7675.38601986,0.00044306,3]
[392172212,1761232242270,-150.0,0.00044316,15]
[392172213,1761232242283,-150.0,0.00044316,15]
[392172214,1761232242292,-150.0,0.00044316,15]
[392172215,1761232242301,-156.46046912,0.00044316,15]
[392172216,1761232242311,-150.0,0.00044316,15]
[392172217,1761232242324,-150.0,0.00044316,15]
[392172218,1761232242333,-150.0,0.00044316,15]
[392172219,1761232242342,-150.0,0.00044316,15]
[392172220,1761232242351,-151.12398688,0.00044316,15]
[392172221,1761232242361,-150.0,0.00044316,15]
[392172222,1761232242370,-151.61175878,0.00044316,15]
[392172223,1761232242379,-150.0,0.00044316,15]
[392172224,1761232242390,-150.0,0.00044316,15]
[392172225,1761232242399,-150.0,0.00044316,15]
[392172226,1761232242408,-150.0,0.00044316,15]
[392172227,1761232242417,-150.0,0.00044316,15]
[392172228,1761232242426,-150.0,0.00044316,15]
[392172229,1761232242435,-150.0,0.00044316,15]
[392172230,1761232242444,-150.0,0.00044316,15]
[392172231,1761232242453,-150.0,0.00044316,15]
[392172232,1761232242462,-150.0,0.00044316,15]
[392172233,1761232242472,-150.0,0.00044316,15]
[392172234,1761232242482,-154.21854172,0.00044316,15]
[392172235,1761232242491,-150.0,0.00044316,2]
[392172236,1761232242501,-150.0,0.00044316,15]
[392172237,1761232242510,-150.0,0.00044316,120]
[392172238,1761232242519,-151.0,0.00044316,30]
[392172239,1761232242529,-151.0,0.00044316,30]
[392172240,1761232242538,-151.0,0.00044316,30]
[392172241,1761232242547,-150.0,0.00044316,15]
[392172242,1761232242557,-150.0,0.00044316,15]
[392172243,1761232242567,-154.11383184,0.00044316,15]
[392172244,1761232242581,-150.0,0.00044316,15]
[392172245,1761232242592,-150.0,0.00044316,15]
[392172246,1761232242602,-150.0,0.00044316,15]
[392172247,1761232242612,-150.0,0.00044316,15]
[392172248,1761232242623,-7848.5167012,0.00044339,3]
[392172249,1761232242635,-1974.16354648,0.00044339,3]
[392172250,1761232242645,-7675.38601986,0.00044367,3]
[392172251,1761232242655,-152.10821404,0.00044371,15]
[392172252,1761232242664,-150.0,0.00044371,15]
[392172253,1761232242674,-150.0,0.00044371,120]
[392172254,1761232242684,-9822.68024768,0.00044377,3]
[392172255,1761232242694,-184.64,0.00044377,2]
[392172256,1761232242703,-500.0,0.00044387,120]
[392172257,1761232242713,-500.0,0.00044387,120]
[392172258,1761232242723,-500.0,0.00044387,120]
[392172259,1761232242733,-500.0,0.00044387,120]
[392172260,1761232242743,-283.8190341,0.00044387,7]
[392172261,1761232242753,-500.0,0.00044387,120]
[392172262,1761232242763,-500.0,0.00044387,120]
[392172263,1761232242772,-500.0,0.00044387,30]
[392172264,1761232242782,-500.0,0.00044387,120]
[392172265,1761232242792,-500.0,0.00044387,120]
[392172266,1761232242801,-500.0,0.00044387,120]
[392172267,1761232242812,-500.0,0.00044387,120]
[392172268,1761232242824,-502.99,0.00044387,120]
[392172269,1761232242834,-500.0,0.00044387,120]
[392172270,1761232242843,-500.0,0.00044387,120]
[392172271,1761232242852,-649.94,0.00044387,120]
[392172272,1761232242862,-500.0,0.00044387,120]
[392172273,1761232242872,-642.27,0.00044387,120]
[392172274,1761232242882,-550.18,0.00044387,120]
[392172275,1761232242892,-535.67,0.00044387,120]
[392172276,1761232242902,-558.91978975,0.00044405,30]
[392172277,1761232242913,-7162.64514414,0.00044412,15]
[392172278,1761232242922,-200.0,0.00044426,15]
[392172279,1761232242931,-200.0,0.00044426,120]
[392172280,1761232242941,-7675.38601986,0.00044451,3]
[392172281,1761232242951,-891.79642152,0.00044481,30]
[392172282,1761232242961,-180.3872281,0.00044525,28]
[392172283,1761232242970,-773.45955,0.0004455,23]
[392172284,1761232242981,-9822.68024768,0.00044557,3]
[392172285,1761232242992,-500.0,0.00044567,30]
[392172286,1761232243002,-4753.47803945,0.00044567,3]
[392172287,1761232243014,-2921.90798041,0.00044567,3]
[392172288,1761232243025,-158.57050889,0.00044587,15]
[392172289,1761232243035,-1425.0,0.00044587,2]
[392172290,1761232243045,-475.0,0.00044639,30]
[392172291,1761232243055,-9822.68024768,0.00044643,3]
[392172292,1761232243065,-7675.38601986,0.00044653,3]
[392172293,1761232243077,-379.3527639,0.00044662,120]
[392172295,1761232243087,-5000.0,0.00044663,120]
[392172296,1761232243096,-7887.3634,0.00044663,120]
[392172298,1761232243106,-9822.68024768,0.00044668,3]
[392172300,1761232243116,-7675.38601986,0.00044678,3]
[392172302,1761232243126,-2643.79963636,0.00044678,3]
[392172314,1761232243833,-1409.73762655,0.00044678,3]
[392172315,1761232243844,-5769.14298477,0.00044678,3]
[392172316,1761232243853,-151.0,0.00044688,120]
[392172317,1761232243862,-151.0,0.00044688,120]
[392172318,1761232243872,-7675.38601986,0.00044688,3]
[392172319,1761232243881,-9822.68024768,0.00044688,3]
[392172320,1761232243891,-1000.0,0.00044698,120]
[392172321,1761232243900,-1000.0,0.00044698,2]
[392172322,1761232243909,-1235.65701591,0.00044698,2]
[392172323,1761232243920,-404.8,0.00044698,2]
[392172324,1761232243931,-1099.38935822,0.00044698,2]
[392172325,1761232243941,-2981.511028,0.00044698,2]
[392172326,1761232243952,-13043.77509787,0.00044698,2]
[392172327,1761232243961,-1108.6499,0.00044698,2]
[392172328,1761232243971,-400.0,0.00044709,10]
[392172329,1761232243980,-773.45956,0.0004471,24]
[392172330,1761232243989,-7675.38601986,0.0004476,3]
[392172331,1761232243999,-19645.3604954,0.00044768,3]
[392172332,1761232244008,-157.32834026,0.00044772,17]
[392172333,1761232244018,-9822.68024768,0.00044777,3]
[392172334,1761232244028,-46052.3161192,0.00044778,3]
[392172335,1761232244037,-459.1141692,0.00044784,2]
[392172336,1761232244047,-7675.38601986,0.00044787,3]
[392172337,1761232244056,-9822.68024768,0.00044787,3]
[392172338,1761232244066,-500.0,0.00044787,120]
[392172339,1761232244077,-500.0,0.00044787,120]
[392172340,1761232244087,-622.54074496,0.00044787,120]
[392172341,1761232244097,-500.0,0.00044787,120]
[392172342,1761232244107,-500.0,0.00044787,120]
[392172343,1761232244117,-500.0,0.00044787,120]
[392172344,1761232244126,-500.0,0.00044787,120]
[392172345,1761232244136,-500.0,0.00044787,120]
[392172346,1761232244145,-500.0,0.00044787,120]
[392172347,1761232244156,-500.0,0.00044787,120]
[392172348,1761232244166,-500.0,0.00044787,120]
[392172349,1761232244177,-500.0,0.00044787,120]
[392172350,1761232244281,-500.0,0.00044787,30]
[392172351,1761232244307,-500.0,0.00044787,120]
[392172352,1761232244318,-500.0,0.00044787,120]
[392172353,1761232244329,-169.180428,0.00044788,120]
[392172354,1761232244341,-169.180428,0.00044788,120]
[392172355,1761232244350,-169.180428,0.00044788,120]
[392172356,1761232244359,-169.180428,0.00044788,120]
[392172357,1761232244368,-151.0,0.00044788,30]
[392172358,1761232244378,-151.0,0.00044788,30]
[392172359,1761232244387,-151.0,0.00044788,30]
[392172360,1761232244397,-260.22578228,0.00044797,120]
[392172361,1761232244407,-500.0,0.00044797,120]
[392172362,1761232244417,-500.0,0.00044797,120]
[392172363,1761232244427,-617.38731873,0.00044797,120]
[392172364,1761232244436,-228.81279447,0.00044797,120]
[392172365,1761232244446,-500.0,0.00044797,120]
[392172366,1761232244455,-500.0,0.00044797,30]
[392172367,1761232244464,-505.34483989,0.00044797,120]
[392172368,1761232244474,-500.0,0.00044797,120]
[392172369,1761232244484,-500.0,0.00044797,120]
[392172370,1761232244493,-501.10403287,0.00044797,120]
[392172371,1761232244504,-648.38931593,0.00044797,120]
[392172372,1761232244514,-502.33062558,0.00044797,120]
[392172373,1761232244524,-262.7607255,0.00044797,120]
[392172374,1761232244534,-500.0,0.00044797,120]
[392172375,1761232244545,-540.05157875,0.00044797,120]
[392172376,1761232244555,-500.0,0.00044797,120]
[392172377,1761232244564,-500.0,0.00044797,120]
[392172378,1761232244577,-515.47168662,0.00044797,120]
[392172379,1761232244587,-500.0,0.00044797,120]
[392172380,1761232244597,-500.0,0.00044797,120]
[392172381,1761232244607,-500.0,0.00044797,120]
[392172382,1761232244616,-500.0,0.00044797,120]
[392172383,1761232244627,-500.0,0.00044797,2]
[392172384,1761232244636,-500.0,0.00044797,120]
[392172385,1761232244646,-500.0,0.00044797,120]
[392172386,1761232244656,-500.0,0.00044797,120]
[392172387,1761232244666,-500.0,0.00044797,120]
[392172388,1761232244675,-500.0,0.00044797,12]
[392172389,1761232244685,-500.0,0.00044797,120]
[392172390,1761232244695,-500.0,0.00044797,120]
[392172391,1761232244705,-511.79012736,0.00044797,120]
[392172392,1761232244715,-500.0,0.00044797,120]
[392172393,1761232244724,-500.0,0.00044797,120]
[392172394,1761232244734,-500.0,0.00044797,120]
[392172395,1761232244743,-211.43,0.00044797,120]
[392172396,1761232244752,-541.62,0.00044797,120]
[392172397,1761232244762,-501.6776544,0.00044797,120]
[392172398,1761232244772,-151.0,0.00044798,120]
[392172399,1761232244781,-169.180428,0.00044798,120]
[392172400,1761232244791,-169.180428,0.00044798,120]
[392172401,1761232244801,-169.180428,0.00044798,120]
[392172402,1761232244810,-169.180428,0.00044798,120]
[392172403,1761232244822,-9822.68024768,0.00044802,3]
[392172404,1761232244832,-157.32834026,0.00044812,17]
[392172405,1761232244841,-295.1550144,0.00044812,120]
[392172406,1761232244851,-500.0,0.00044812,120]
[392172407,1761232244861,-500.0,0.00044812,120]
[392172408,1761232244871,-232.67001551,0.00044812,120]
[392172409,1761232244880,-500.0,0.00044812,30]
[392172410,1761232244890,-666.0,0.00044841,30]
[392172411,1761232244900,-157.32834026,0.00044851,17]
[392172412,1761232244909,-151.0,0.00044852,120]
[392172413,1761232244918,-151.0,0.00044852,120]
[392172414,1761232244928,-9822.68024768,0.00044852,3]
[392172415,1761232244938,-7675.38601986,0.0004486,3]
[392172416,1761232244947,-7675.38601986,0.00044862,3]
[392172417,1761232244957,-7675.38601986,0.00044862,3]
[392172418,1761232244967,-7675.38601986,0.0004487,3]
[392172419,1761232244976,-9822.68024768,0.0004487,3]
[392172420,1761232244985,-9822.68024768,0.00044872,3]
[392172421,1761232244994,-164.2060371,0.00044872,2]
[392172422,1761232245004,-2931.5398849,0.00044872,2]
[392172423,1761232245013,-9822.68024768,0.00044877,3]
[392172424,1761232245024,-5000.0,0.0004488,120]
[392172425,1761232245035,-5000.0,0.0004488,120]
[392172426,1761232245043,-5000.0,0.0004488,120]
[392172427,1761232245052,-4439.0,0.0004488,120]
[392172428,1761232245063,-13189.35104659,0.00044882,2]
[392172429,1761232245114,-151.0,0.00044209,120]
[392172430,1761232245124,-7162.64514414,0.00044537,15]
[392172431,1761232245134,-9118.13561491,0.00044882,2]
[392172432,1761232245143,-573.33,0.00044887,120]
[392172433,1761232245153,-500.0,0.00044887,120]
[392172434,1761232245164,-500.0,0.00044887,120]
[392172435,1761232245174,-500.0,0.00044887,2]
[392172436,1761232245184,-299.78,0.00044887,120]
[392172437,1761232245193,-322.55,0.00044887,12]
[392172438,1761232245202,-500.0,0.00044887,120]
[392172439,1761232245212,-527.17394599,0.00044887,120]
[392172440,1761232245221,-500.0,0.00044887,120]
[392172441,1761232245231,-9822.68024768,0.0004489,3]
[392172442,1761232245240,-157.32834026,0.00044891,17]
[392172443,1761232245249,-160.56398267,0.00044894,20]
[392172444,1761232245258,-194.621,0.00044898,2]
[392172445,1761232245267,-500.0,0.00044899,120]
[392172446,1761232245281,-500.0,0.00044899,120]
[392172447,1761232245291,-500.0,0.00044899,120]
[392172448,1761232245301,-500.0,0.00044899,120]
[392172449,1761232245310,-500.0,0.00044899,120]
[392172450,1761232245322,-500.0,0.00044899,120]
[392172451,1761232245332,-500.0,0.00044899,120]
[392172452,1761232245341,-500.0,0.00044899,120]
[392172453,1761232245351,-500.0,0.00044899,120]
[392172454,1761232245361,-500.0,0.00044899,120]
[392172455,1761232245370,-500.0,0.00044899,120]
[392172456,1761232245380,-500.0,0.00044899,120]
[392172457,1761232245390,-8476.0607639,0.000449,2]
[392172458,1761232245399,-151.0,0.000449,30]
[392172459,1761232245409,-151.0,0.000449,30]
[392172460,1761232245419,-151.0,0.000449,30]
[392172461,1761232245429,-425.3480466,0.000449,2]
[392172462,1761232245438,-165.5245503,0.000449,2]
[392172463,1761232245448,-162.4220011,0.000449,2]
[392172464,1761232245458,-3499.48068086,0.0004491,15]
[392172465,1761232245468,-180.3872281,0.0004492,28]
[392172466,1761232245478,-180.77331105,0.0004492,120]
[392172467,1761232245487,-9822.68024768,0.00044925,3]
[392172468,1761232245499,-158.57050889,0.0004493,15]
[392172469,1761232245509,-157.32834026,0.0004493,17]
[392172470,1761232245520,-8476.0607639,0.00044935,2]
[392172471,1761232245530,-425.3480466,0.00044935,2]
[392172472,1761232245540,-165.52455028,0.00044935,2]
[392172473,1761232245549,-169.180428,0.0004494,120]
[392172474,1761232245559,-169.180428,0.0004494,120]
[392172475,1761232245569,-169.180428,0.0004494,120]
[392172476,1761232245582,-169.180428,0.0004494,120]
[392172477,1761232245592,-485.30626922,0.00044949,120]
[392172478,1761232245601,-1000.0,0.0004495,4]
[392172479,1761232245611,-1000.0,0.0004495,4]
[392172480,1761232245621,-1000.0,0.0004495,4]
[392172481,1761232245631,-1000.0,0.0004495,4]
[392172482,1761232245641,-1000.0,0.0004495,4]
[392172483,1761232245652,-1000.0,0.0004495,4]
[392172484,1761232245662,-1000.0,0.0004495,4]
[392172485,1761232245675,-1000.0,0.0004495,4]
[392172486,1761232245684,-1000.0,0.0004495,4]
[392172487,1761232245694,-1024.32152524,0.0004495,4]
[392172488,1761232245704,-500.0,0.00044951,2]